Workbook

Sheet Euro Truck
A1: Estimation Tool for transportations round Russian Federation from Serpukhov
O2: ГОРОД | P2: КМ | Q2: AGILITY | R2: DACHSER | S2: ASSTRA | T2: SOVTRANS | U2: MIN | V2: Перевозчик | X2: ГОРОД | Y2: AGILITY | Z2: DACHSER | AA2: ASSTRA | AB2: SOVTRANS | AC2: MIN | AD2: Перевозчик
A3: Please choose the correct conditions for transportation and fill in the green cells : | O3: ATYRAU | P3: 1883 | Q3: 999999 | R3: 150000 | S3: 140000 | T3: 114000 | U3: =MIN(Q3:T3) -> 114000 | V3: =IF(U3=Q3,$Q$2,IF(R3=U3,$R$2,IF(U3=S3,$S$2,IF(U3=T3,$T$2,0)))) -> SOVTRANS | X3: ATYRAU | Y3: =IFERROR(Q3-Q3*10%,0) -> 899999.1 | Z3: =IFERROR(R3-R3*10%,0) -> 135000 | AA3: =IFERROR(S3-S3*10%,0) -> 126000 | AB3: =IFERROR(T3-T3*10%,0) -> 102600 | AC3: =MIN(Y3:AB3) -> 102600 | AD3: =IF(AC3=Y3,$Y$2,IF(Z3=AC3,$Z$2,IF(AC3=AA3,$AA$2,IF(AC3=AB3,$AB$2,0)))) -> SOVTRANS
A4: Equipment | B4: Unit of measure | C4: Estimated amount | D4: Amount of required transport | O4: ACHINSK | P4: 4070 | Q4: 290000 | R4: 265000 | S4: 240000 | T4: 231000 | U4: 231000 | V4: =IF(U4=Q4,$Q$2,IF(R4=U4,$R$2,IF(U4=S4,$S$2,IF(U4=T4,$T$2,0)))) -> SOVTRANS | X4: ACHINSK | Y4: =IFERROR(Q4-Q4*10%,0) -> 261000 | Z4: =IFERROR(R4-R4*10%,0) -> 238500 | AA4: =IFERROR(S4-S4*10%,0) -> 216000 | AB4: =IFERROR(T4-T4*10%,0) -> 207900 | AC4: =MIN(Y4:AB4) -> 207900 | AD4: =IF(AC4=Y4,$Y$2,IF(Z4=AC4,$Z$2,IF(AC4=AA4,$AA$2,IF(AC4=AB4,$AB$2,0)))) -> SOVTRANS
A5: Random Packing (gross volume from Sulprice) | B5: m3 | C5: 0 | D5: =C5/42 -> 0 | O5: ACTAU | P5: 2580 | Q5: 210000 | R5: 243000 | S5: 9999999 | T5: 152000 | U5: 152000 | V5: SOVTRANS | X5: ACTAU | Y5: 189000 | Z5: 218700 | AA5: 8999999.1 | AB5: 136800 | AC5: 136800 | AD5: SOVTRANS
A6: Structured Packing (gross volume from Sulprice) | B6: m3 | C6: 0 | D6: =C6/39 -> 0 | O6: ANGARSK | P6: 5242 | Q6: 380000 | R6: 340000 | S6: 395000 | T6: 288750 | U6: 288750 | V6: SOVTRANS | X6: ANGARSK | Y6: 342000 | Z6: 306000 | AA6: 355500 | AB6: 259875 | AC6: 259875 | AD6: SOVTRANS
A7: Trays (gross weight from Sulprice) | B7: kg | C7: 0 | D7: =C7/7000 -> 0 | O7: ASTRAKHAN | P7: 1351 | Q7: 120000 | R7: 92000 | S7: 89000 | T7: 81900 | U7: 81900 | V7: SOVTRANS | X7: ASTRAKHAN | Y7: 108000 | Z7: 82800 | AA7: 80100 | AB7: 73710 | AC7: 73710 | AD7: SOVTRANS
A8: Internals (gross weight from Sulprice) | B8: kg | C8: 5000 | D8: =C8/8000 -> 0.625 | H8: MOZYR, BY | O8: BALASHIHA | P8: 122 | Q8: 25000 | R8: 19500 | S8: 20000 | T8: 17600 | U8: 17600 | V8: SOVTRANS | X8: BALASHIHA | Y8: =IFERROR(Q8-Q8*15%,0) -> 21250 | Z8: =IFERROR(R8-R8*15%,0) -> 16575 | AA8: 17000 | AB8: 14960 | AC8: 14960 | AD8: SOVTRANS
A9: Total q-ty of standard trucks or containers x 40 " | D9: =ROUNDUP(SUM(D5:D8),0) -> 1 | H9: NOVOPOLOCK. BY | O9: BLAGOVESHSCENSK, AMUR | P9: 7900 | Q9: 600000 | R9: 550000 | S9: 480000 | T9: 483000 | U9: 480000 | V9: ASSTRA | X9: BLAGOVESHSCENSK, AMUR | Y9: 540000 | Z9: 495000 | AA9: 432000 | AB9: 434700 | AC9: 432000 | AD9: ASSTRA
H10: ATYRAU | O10: BLAGOVESHSCENSK, BASH | P10: 1400 | Q10: 60000 | R10: 100000 | S10: 88000 | T10: 39900 | U10: 39900 | V10: SOVTRANS | X10: BLAGOVESHSCENSK, BASH | Y10: 54000 | Z10: 90000 | AA10: 79200 | AB10: 35910 | AC10: 35910 | AD10: SOVTRANS
A11: Destination City | B11: ANGARSK | H11: ACTAU | O11: BORISOGLEBSK | P11: 574 | Q11: 60000 | R11: 42000 | S11: 9999999 | T11: 39900 | U11: 39900 | V11: SOVTRANS | X11: BORISOGLEBSK | Y11: 54000 | Z11: 37800 | AA11: 8999999.1 | AB11: 35910 | AC11: 35910 | AD11: SOVTRANS
A12: Transportation time, days | B12: =ROUNDUP(VLOOKUP(B11,O:P,2,0)/500,0) -> 11 | O12: BRATSK | P12: 4919 | Q12: 380000 | R12: 335000 | S12: 320000 | T12: 309750 | U12: 309750 | V12: SOVTRANS | X12: BRATSK | Y12: 342000 | Z12: 301500 | AA12: 288000 | AB12: 278775 | AC12: 278775 | AD12: SOVTRANS
O13: DOROGOBUZH | P13: 346 | Q13: 40000 | R13: 30000 | S13: 999999 | T13: 25200 | U13: 25200 | V13: SOVTRANS | X13: DOROGOBUZH | Y13: 36000 | Z13: 27000 | AA13: 899999.1 | AB13: 22680 | AC13: 22680 | AD13: SOVTRANS
A14: Details: | O14: DZERZHINSK | P14: 490 | Q14: 40000 | R14: 37000 | S14: 33000 | T14: 28350 | U14: 28350 | V14: SOVTRANS | X14: DZERZHINSK | Y14: =IFERROR(Q14-Q14*15%,0) -> 34000 | Z14: =IFERROR(R14-R14*15%,0) -> 31450 | AA14: 28050 | AB14: 24097.5 | AC14: 24097.5 | AD14: SOVTRANS
A15: COO, once for an ICO | B15: =IF(ISNUMBER(MATCH($B$11,$H$8:$H$11,0)),5900,0) -> 0 | O15: GAGARIN | P15: 201 | Q15: 30000 | R15: 25000 | S15: 40000 | T15: 21000 | U15: 21000 | V15: SOVTRANS | X15: GAGARIN | Y15: =IFERROR(Q15-Q15*15%,0) -> 25500 | Z15: 21250 | AA15: 34000 | AB15: 17850 | AC15: 17850 | AD15: SOVTRANS
A16: InC from FSTEC of Russia, once for an ICO | B16: =IF(ISNUMBER(MATCH($B$11,$H$8:$H$11,0)),8000,0) -> 0 | O16: KALUGA | P16: 133 | Q16: 25000 | R16: 23000 | S16: 24000 | T16: 18700 | U16: 18700 | V16: SOVTRANS | X16: KALUGA | Y16: =IFERROR(Q16-Q16*15%,0) -> 21250 | Z16: 19550 | AA16: 20400 | AB16: 15895 | AC16: 15895 | AD16: SOVTRANS
A17: Total freight & logistics costs | B17: =SUM(B15:B16) -> 0 | O17: KAZAN | P17: 912 | Q17: 999999 | R17: 60000 | S17: 65000 | T17: 54600 | U17: 54600 | V17: SOVTRANS | X17: KAZAN | Y17: =IFERROR(Q17-Q17*15%,0) -> 849999.15 | Z17: 51000 | AA17: 55250 | AB17: 46410 | AC17: 46410 | AD17: SOVTRANS
A18: Details: | B18: 🚚 Truck Euro | O18: KEMEROVO | P18: 3711 | Q18: 280000 | R18: 255000 | S18: 195000 | T18: 204750 | U18: 195000 | V18: ASSTRA | X18: KEMEROVO | Y18: 252000 | Z18: 229500 | AA18: 175500 | AB18: 184275 | AC18: 175500 | AD18: ASSTRA
A19: Total freight forwarder & logistics costs | B19: =IF(ISNA(VLOOKUP(B11,H8:H22,1,0))=TRUE,VLOOKUP(B11,X:AD,6,0)*D9,SUM(VLOOKUP(B11,X:AD,6,0)*D9,B17)) -> 259875 | F19: =VLOOKUP(B11,X:AD,7,0) -> SOVTRANS | O19: KIRISHI | P19: 749 | Q19: 55000 | R19: 43000 | S19: 40000 | T19: 36750 | U19: 36750 | V19: SOVTRANS | X19: KIRISHI | Y19: 49500 | Z19: 38700 | AA19: 36000 | AB19: 33075 | AC19: 33075 | AD19: SOVTRANS
O20: KIROVO-CHEPECK | P20: 1106 | Q20: 100000 | R20: 72000 | S20: 76000 | T20: 54600 | U20: 54600 | V20: SOVTRANS | X20: KIROVO-CHEPECK | Y20: 90000 | Z20: 64800 | AA20: 68400 | AB20: 49140 | AC20: 49140 | AD20: SOVTRANS
O21: KRASNODAR | P21: 1312 | Q21: 100000 | R21: 84000 | S21: 85000 | T21: 75600 | U21: 75600 | V21: SOVTRANS | X21: KRASNODAR | Y21: 90000 | Z21: 75600 | AA21: 76500 | AB21: 68040 | AC21: 68040 | AD21: SOVTRANS
O22: KRASNOYARSK | P22: 4239 | Q22: 320000 | R22: 275000 | S22: 230000 | T22: 236250 | U22: 230000 | V22: ASSTRA | X22: KRASNOYARSK | Y22: 288000 | Z22: 247500 | AA22: 207000 | AB22: 212625 | AC22: 207000 | AD22: ASSTRA
O23: KSTOVO | P23: 538 | Q23: 50000 | R23: 38000 | S23: 32000 | T23: 29400 | U23: 29400 | V23: SOVTRANS | X23: KSTOVO | Y23: =IFERROR(Q23-Q23*15%,0) -> 42500 | Z23: =IFERROR(R23-R23*15%,0) -> 32300 | AA23: 27200 | AB23: 24990 | AC23: 24990 | AD23: SOVTRANS
O24: KURGAN | P24: 2200 | Q24: 165000 | R24: 140000 | S24: 160000 | T24: 132300 | U24: 132300 | V24: SOVTRANS | X24: KURGAN | Y24: 148500 | Z24: 126000 | AA24: 144000 | AB24: 119070 | AC24: 119070 | AD24: SOVTRANS
O25: LIPECK | P25: 423 | Q25: 55000 | R25: 32000 | S25: 33000 | T25: 26250 | U25: 26250 | V25: SOVTRANS | X25: LIPECK | Y25: 49500 | Z25: 28800 | AA25: 29700 | AB25: 23625 | AC25: 23625 | AD25: SOVTRANS
O26: MONCHEGORSK | P26: 1910 | Q26: 175000 | R26: 390000 | S26: 130000 | T26: 120750 | U26: 120750 | V26: SOVTRANS | X26: MONCHEGORSK | Y26: 157500 | Z26: 351000 | AA26: 117000 | AB26: 108675 | AC26: 108675 | AD26: SOVTRANS
O27: MOSCOW | P27: 103 | Q27: 25000 | R27: 19000 | S27: 19000 | T27: 16500 | U27: 16500 | V27: SOVTRANS | X27: MOSCOW | Y27: =IFERROR(Q27-Q27*15%,0) -> 21250 | Z27: =IFERROR(R27-R27*15%,0) -> 16150 | AA27: 16150 | AB27: 14025 | AC27: 14025 | AD27: SOVTRANS
O28: MOZYR, BY | P28: 738 | Q28: 70000 | R28: 54000 | S28: 999999 | T28: 999999 | U28: =MIN(Q28:T28) -> 54000 | V28: DACHSER | X28: MOZYR, BY | Y28: 63000 | Z28: 48600 | AA28: 899999.1 | AB28: 899999.1 | AC28: 48600 | AD28: DACHSER
O29: NIZHNEKAMSK | P29: 1230 | Q29: 95000 | R29: 75000 | S29: 70000 | T29: 59850 | U29: 59850 | V29: SOVTRANS | X29: NIZHNEKAMSK | Y29: =IFERROR(Q29-Q29*15%,0) -> 80750 | Z29: =IFERROR(R29-R29*15%,0) -> 63750 | AA29: 59500 | AB29: 50872.5 | AC29: 50872.5 | AD29: SOVTRANS
O30: NIZHNEVARTOVSK | P30: 3234 | Q30: 255000 | R30: 205000 | S30: 185000 | T30: 183750 | U30: 183750 | V30: SOVTRANS | X30: NIZHNEVARTOVSK | Y30: 229500 | Z30: 184500 | AA30: 166500 | AB30: 165375 | AC30: 165375 | AD30: SOVTRANS
O31: NIZHNY NOVGOROD | P31: 499 | Q31: 45000 | R31: 35000 | S31: 32000 | T31: 29400 | U31: 29400 | V31: SOVTRANS | X31: NIZHNY NOVGOROD | Y31: =IFERROR(Q31-Q31*15%,0) -> 38250 | Z31: =IFERROR(R31-R31*15%,0) -> 29750 | AA31: 27200 | AB31: 24990 | AC31: 24990 | AD31: SOVTRANS
O32: NOVIY URENGOY | P32: 3761 | Q32: 300000 | R32: 253000 | S32: 215000 | T32: 225750 | U32: 215000 | V32: ASSTRA | X32: NOVIY URENGOY | Y32: 270000 | Z32: 227700 | AA32: 193500 | AB32: 203175 | AC32: 193500 | AD32: ASSTRA
O33: NOVOMOSKOVSK | P33: 851 | Q33: 32000 | R33: 23000 | S33: 26000 | T33: 17850 | U33: 17850 | V33: SOVTRANS | X33: NOVOMOSKOVSK | Y33: =IFERROR(Q33-Q33*15%,0) -> 27200 | Z33: =IFERROR(R33-R33*15%,0) -> 19550 | AA33: 22100 | AB33: 15172.5 | AC33: 15172.5 | AD33: SOVTRANS
O34: NOVOPOLOCK. BY | P34: 659 | Q34: 60000 | R34: 45000 | S34: 999999 | T34: 999999 | U34: 45000 | V34: DACHSER | X34: NOVOPOLOCK. BY | Y34: 54000 | Z34: 40500 | AA34: 899999.1 | AB34: 899999.1 | AC34: 40500 | AD34: DACHSER
O35: NOVOSHAHTINSK | P35: 981 | Q35: 80000 | R35: 68000 | S35: 78000 | T35: 61950 | U35: =MIN(Q35:T35) -> 61950 | V35: SOVTRANS | X35: NOVOSHAHTINSK | Y35: 72000 | Z35: 61200 | AA35: 70200 | AB35: 55755 | AC35: 55755 | AD35: SOVTRANS
O36: OMSK | P36: 2803 | Q36: 220000 | R36: 175000 | S36: 140000 | T36: 162750 | U36: 140000 | V36: ASSTRA | X36: OMSK | Y36: =IFERROR(Q36-Q36*10%,0) -> 198000 | Z36: 157500 | AA36: 126000 | AB36: 146475 | AC36: 126000 | AD36: ASSTRA
O37: ORENBURG | P37: 1463 | Q37: 120000 | R37: 100000 | S37: 103000 | T37: 94500 | U37: 94500 | V37: SOVTRANS | X37: ORENBURG | Y37: 108000 | Z37: 90000 | AA37: 92700 | AB37: 85050 | AC37: 85050 | AD37: SOVTRANS
O38: ORSK | P38: 1753 | Q38: 135000 | R38: 114000 | S38: 105000 | T38: 105000 | U38: 105000 | V38: ASSTRA | X38: ORSK | Y38: 121500 | Z38: 102600 | AA38: 94500 | AB38: 94500 | AC38: 94500 | AD38: ASSTRA
O39: PAVLODAR | P39: 3225 | Q39: 280000 | R39: 245000 | S39: 999999 | T39: 999999 | U39: 245000 | V39: DACHSER | X39: PAVLODAR | Y39: 252000 | Z39: 220500 | AA39: 899999.1 | AB39: 899999.1 | AC39: 220500 | AD39: DACHSER
O40: PERM | P40: 1544 | Q40: 125000 | R40: 95000 | S40: 100000 | T40: 91350 | U40: 91350 | V40: SOVTRANS | X40: PERM | Y40: =IFERROR(Q40-Q40*15%,0) -> 106250 | Z40: =IFERROR(R40-R40*15%,0) -> 80750 | AA40: 85000 | AB40: 77647.5 | AC40: 77647.5 | AD40: SOVTRANS
O41: PODOLSK | P41: 68 | Q41: 18000 | R41: 19000 | S41: 21000 | T41: 14700 | U41: 14700 | V41: SOVTRANS | X41: PODOLSK | Y41: =IFERROR(Q41-Q41*15%,0) -> 15300 | Z41: 16150 | AA41: 17850 | AB41: =IFERROR(T41-T41*15%,0) -> 12495 | AC41: 12495 | AD41: SOVTRANS
O42: ROSTOV-NA-DONU | P42: 1034 | Q42: 85000 | R42: 70000 | S42: 75000 | T42: 63000 | U42: 63000 | V42: SOVTRANS | X42: ROSTOV-NA-DONU | Y42: 76500 | Z42: 63000 | AA42: 67500 | AB42: 56700 | AC42: 56700 | AD42: SOVTRANS
O43: RYAZAN | P43: 233 | Q43: 30000 | R43: 23000 | S43: 26000 | T43: 18900 | U43: 18900 | V43: SOVTRANS | X43: RYAZAN | Y43: 27000 | Z43: 20700 | AA43: 23400 | AB43: 17010 | AC43: 17010 | AD43: SOVTRANS
O44: SALAVAT, BEL | P44: 1654 | Q44: 95000 | R44: 100000 | S44: 999999 | T44: 99999 | U44: 95000 | V44: AGILITY | X44: SALAVAT, BEL | Y44: 85500 | Z44: 90000 | AA44: 899999.1 | AB44: 89999.1 | AC44: 85500 | AD44: AGILITY
O45: SAMARA | P45: 1054 | Q45: 75000 | R45: 70000 | S45: 68000 | T45: 63000 | U45: 63000 | V45: SOVTRANS | X45: SAMARA | Y45: 67500 | Z45: 63000 | AA45: 61200 | AB45: 56700 | AC45: 56700 | AD45: SOVTRANS
O46: SANKT-PETERBURG | P46: 810 | Q46: 50000 | R46: 39000 | S46: 39000 | T46: 39900 | U46: 39000 | V46: DACHSER | X46: SANKT-PETERBURG | Y46: =IFERROR(Q46-Q46*15%,0) -> 42500 | Z46: =IFERROR(R46-R46*15%,0) -> 33150 | AA46: 33150 | AB46: 33915 | AC46: 33150 | AD46: DACHSER
O47: SARATOV | P47: 795 | Q47: 65000 | R47: 60000 | S47: 65000 | T47: 53550 | U47: 53550 | V47: SOVTRANS | X47: SARATOV | Y47: 58500 | Z47: 54000 | AA47: 58500 | AB47: 48195 | AC47: 48195 | AD47: SOVTRANS
O48: SALAVAT | P48: 1500 | Q48: 125000 | R48: 99999999 | S48: 98000 | T48: 89250 | U48: 89250 | V48: SOVTRANS | X48: SALAVAT | Y48: 112500 | Z48: 89999999.1 | AA48: 88200 | AB48: 80325 | AC48: 80325 | AD48: SOVTRANS
O49: SYZRAN | P49: 898 | Q49: 70000 | R49: 65000 | S49: 69000 | T49: 63000 | U49: 63000 | V49: SOVTRANS | X49: SYZRAN | Y49: 63000 | Z49: 58500 | AA49: 62100 | AB49: 56700 | AC49: 56700 | AD49: SOVTRANS
O50: TAGANROG | P50: 1100 | Q50: 80000 | R50: 74000 | S50: 78000 | T50: 68250 | U50: 68250 | V50: SOVTRANS | X50: TAGANROG | Y50: 72000 | Z50: 66600 | AA50: 70200 | AB50: 61425 | AC50: 61425 | AD50: SOVTRANS
O51: TATARSTAN | P51: 1262 | Q51: 80000 | R51: 67000 | S51: 65000 | T51: 99999 | U51: 65000 | V51: ASSTRA | X51: TATARSTAN | Y51: 72000 | Z51: 60300 | AA51: 58500 | AB51: 89999.1 | AC51: 58500 | AD51: ASSTRA
O52: TULA | P52: 92 | Q52: 22000 | R52: 22000 | S52: 25000 | T52: 16800 | U52: 16800 | V52: SOVTRANS | X52: TULA | Y52: =IFERROR(Q52-Q52*15%,0) -> 18700 | Z52: =IFERROR(R52-R52*15%,0) -> 18700 | AA52: 21250 | AB52: 14280 | AC52: 14280 | AD52: SOVTRANS
O53: TUMEN | P53: 2209 | Q53: 185000 | R53: 145000 | S53: 140000 | T53: 133350 | U53: 133350 | V53: SOVTRANS | X53: TUMEN | Y53: 166500 | Z53: 130500 | AA53: 126000 | AB53: 120015 | AC53: 120015 | AD53: SOVTRANS
O54: ULYANOVSK | P54: 880 | Q54: 70000 | R54: 65000 | S54: 63000 | T54: 59850 | U54: 59850 | V54: SOVTRANS | X54: ULYANOVSK | Y54: 63000 | Z54: 58500 | AA54: 56700 | AB54: 53865 | AC54: 53865 | AD54: SOVTRANS
O55: UST-KUT (IRKUTSK) | P55: 5269 | Q55: 395000 | R55: 323000 | S55: 320000 | T55: 299250 | U55: 299250 | V55: SOVTRANS | X55: UST-KUT (IRKUTSK) | Y55: 355500 | Z55: 290700 | AA55: 288000 | AB55: 269325 | AC55: 269325 | AD55: SOVTRANS
O56: VELIKI NOVGOROD | P56: 682 | Q56: 45000 | R56: 37000 | S56: 38000 | T56: 33600 | U56: 33600 | V56: SOVTRANS | X56: VELIKI NOVGOROD | Y56: =IFERROR(Q56-Q56*15%,0) -> 38250 | Z56: =IFERROR(R56-R56*15%,0) -> 31450 | AA56: 32300 | AB56: 28560 | AC56: 28560 | AD56: SOVTRANS
O57: VOLGOGRAD | P57: 928 | Q57: 70000 | R57: 65000 | S57: 65000 | T57: 52500 | U57: 52500 | V57: SOVTRANS | X57: VOLGOGRAD | Y57: 63000 | Z57: 58500 | AA57: 58500 | AB57: 47250 | AC57: 47250 | AD57: SOVTRANS
O58: VORONEZH | P58: 482 | Q58: 35000 | R58: 35000 | S58: 35000 | T58: 27300 | U58: 27300 | V58: SOVTRANS | X58: VORONEZH | Y58: 31500 | Z58: 31500 | AA58: 31500 | AB58: 24570 | AC58: 24570 | AD58: SOVTRANS
O59: YAROSLAVL | P59: 375 | Q59: 35000 | R59: 28000 | S59: 26000 | T59: 24150 | U59: 24150 | V59: SOVTRANS | X59: YAROSLAVL | Y59: =IFERROR(Q59-Q59*15%,0) -> 29750 | Z59: =IFERROR(R59-R59*15%,0) -> 23800 | AA59: 22100 | AB59: 20527.5 | AC59: 20527.5 | AD59: SOVTRANS
O60: ФУРА 20т | X60: (СТАВКА - НДС) + ЗАПАС

Sheet Small Trucks
A1: Estimation Tool for transportations round Russian Federation from Serpukhov
A3: Please choose the correct conditions for transportation and fill in the green cells :
A4: Destination city | B4: ASTRAKHAN | I4: ГОРОД | J4: КМ | K4: AGILITY | L4: DACHSER | M4: ASSTRA | N4: SOVTRANS | O4: MIN | P4: Перевозчик | R4: ГОРОД | S4: КМ | T4: AGILITY | U4: DACHSER | V4: ASSTRA | W4: SOVTRANS | X4: MIN | Y4: Перевозчик | AA4: ГОРОД | AB4: КМ | AC4: AGILITY | AD4: DACHSER | AE4: ASSTRA | AF4: SOVTRANS | AG4: MIN | AH4: Перевозчик | AJ4: (СТАВКА - НДС) + ЗАПАС 10ТОННИК | AP4: (СТАВКА - НДС) + ЗАПАС 10ТОННИК | AV4: (СТАВКА - НДС) + ЗАПАС 3ТОННИК (СБОРКА) | BB4: MOZYR, BY
A5: Transportation time, days | B5: =ROUNDUP(VLOOKUP(B4,I5:J60,2,0)/500,0) -> 3 | I5: ATYRAU | J5: 1883 | K5: 0 | L5: 0 | M5: 0 | N5: 0 | O5: =MIN(K5:N5) -> 0 | P5: =IF(O5=K5,$K$4,IF(O5=L5,$L$4,IF(O5=M5,$M$4,IF(O5=N5,$N$4,0)))) -> AGILITY | R5: ATYRAU | S5: 1883 | T5: 0 | U5: 0 | V5: 0 | W5: 0 | X5: =MIN(T5:W5) -> 0 | Y5: =IF(X5=T5,$T$4,IF(X5=U5,$U$4,IF(X5=V5,$V$4,IF(X5=W5,$W$4,0)))) -> AGILITY | AA5: ATYRAU | AB5: 1883 | AC5: 9999999 | AD5: 60000 | AE5: 9999999 | AF5: 9999999 | AG5: =MIN(AC5:AF5) -> 60000 | AH5: =IF(AG5=AC5,$AC$4,IF(AG5=AD5,$AD$4,IF(AG5=AE5,$AE$4,IF(AG5=AF5,$AF$4,0)))) -> DACHSER | AJ5: =IFERROR(K5-K5*10%,0) -> 0 | AK5: =IFERROR(L5-L5*10%,0) -> 0 | AL5: 0 | AM5: 0 | AN5: =MIN(AJ5:AM5) -> 0 | AP5: =IFERROR(T5-T5*10%,0) -> 0 | AQ5: =IFERROR(U5-U5*10%,0) -> 0 | AR5: 0 | AS5: 0 | AT5: =MIN(AP5:AS5) -> 0 | AV5: =IFERROR(AC5-AC5*10%,0) -> 8999999.1 | AW5: =IFERROR(AD5-AD5*10%,0) -> 54000 | AX5: 8999999.1 | AY5: 8999999.1 | AZ5: =MIN(AV5:AY5) -> 54000 | BB5: NOVOPOLOCK. BY
I6: ACHINSK | J6: 4070 | K6: =240000-240000*10% -> 216000 | L6: 225000 | M6: 180000 | N6: 196350 | O6: 180000 | P6: =IF(O6=K6,$K$4,IF(O6=L6,$L$4,IF(O6=M6,$M$4,IF(O6=N6,$N$4,0)))) -> ASSTRA | R6: ACHINSK | S6: 4070 | T6: 9999999 | U6: 185000 | V6: 9999999 | W6: 157080 | X6: 157080 | Y6: =IF(X6=T6,$T$4,IF(X6=U6,$U$4,IF(X6=V6,$V$4,IF(X6=W6,$W$4,0)))) -> SOVTRANS | AA6: ACHINSK | AB6: 4070 | AC6: 9999999 | AD6: 170000 | AE6: 9999999 | AF6: 133980 | AG6: 133980 | AH6: =IF(AG6=AC6,$AC$4,IF(AG6=AD6,$AD$4,IF(AG6=AE6,$AE$4,IF(AG6=AF6,$AF$4,0)))) -> SOVTRANS | AJ6: =IFERROR(K6-K6*10%,0) -> 194400 | AK6: 202500 | AL6: 162000 | AM6: 176715 | AN6: =MIN(AJ6:AM6) -> 162000 | AP6: =IFERROR(T6-T6*10%,0) -> 8999999.1 | AQ6: 166500 | AR6: 8999999.1 | AS6: 141372 | AT6: =MIN(AP6:AS6) -> 141372 | AV6: =IFERROR(AC6-AC6*10%,0) -> 8999999.1 | AW6: 153000 | AX6: 8999999.1 | AY6: 120582 | AZ6: =MIN(AV6:AY6) -> 120582 | BB6: ATYRAU
I7: ACTAU | J7: 2580 | K7: 160000 | L7: 195000 | M7: 9999999 | O7: 160000 | P7: AGILITY | R7: ACTAU | S7: 2580 | T7: 9999999 | U7: 148000 | V7: 9999999 | W7: 9999999 | X7: 148000 | Y7: DACHSER | AA7: ACTAU | AB7: 2580 | AC7: 9999999 | AD7: 140000 | AE7: 9999999 | AF7: 9999999 | AG7: 140000 | AH7: DACHSER | AJ7: 144000 | AK7: 175500 | AL7: 8999999.1 | AM7: 0 | AN7: 0 | AP7: 8999999.1 | AQ7: 133200 | AR7: 8999999.1 | AS7: 8999999.1 | AT7: 133200 | AV7: 8999999.1 | AW7: 126000 | AX7: 8999999.1 | AY7: 8999999.1 | AZ7: 126000 | BB7: ACTAU
A8: Details: | I8: ANGARSK | J8: 5242 | K8: 320000 | L8: 290000 | M8: 367000 | N8: 245437.5 | O8: 245437.5 | P8: SOVTRANS | R8: ANGARSK | S8: 5242 | T8: 9999999 | U8: 241000 | V8: 9999999 | W8: 196350 | X8: 196350 | Y8: SOVTRANS | AA8: ANGARSK | AB8: 5242 | AC8: 9999999 | AD8: 218000 | AE8: 9999999 | AF8: 167475 | AG8: 167475 | AH8: SOVTRANS | AJ8: 288000 | AK8: 261000 | AL8: 330300 | AM8: 220893.75 | AN8: 220893.75 | AP8: 8999999.1 | AQ8: 216900 | AR8: 8999999.1 | AS8: 176715 | AT8: 176715 | AV8: 8999999.1 | AW8: 196200 | AX8: 8999999.1 | AY8: 150727.5 | AZ8: 150727.5
A9: COO, once for an ICO | B9: =IF(ISNUMBER(MATCH($B$4,$BB$4:$BB$7,0)),5900,0) -> 0 | I9: ASTRAKHAN | J9: 1351 | K9: 100000 | L9: 77000 | M9: 56000 | N9: 69615 | O9: 56000 | P9: ASSTRA | R9: ASTRAKHAN | S9: 1351 | T9: 9999999 | U9: 65000 | V9: 9999999 | W9: 55692 | X9: 55692 | Y9: SOVTRANS | AA9: ASTRAKHAN | AB9: 1351 | AC9: 9999999 | AD9: 58000 | AE9: 9999999 | AF9: 47502 | AG9: 47502 | AH9: SOVTRANS | AJ9: 90000 | AK9: 69300 | AL9: 50400 | AM9: 62653.5 | AN9: 50400 | AP9: 8999999.1 | AQ9: 58500 | AR9: 8999999.1 | AS9: 50122.8 | AT9: 50122.8 | AV9: 8999999.1 | AW9: 52200 | AX9: 8999999.1 | AY9: 42751.8 | AZ9: 42751.8
A10: InC from FSTEC of Russia, once for an ICO | B10: =IF(ISNUMBER(MATCH($B$4,$BB$4:$BB$7,0)),8000,0) -> 0 | I10: BALASHIHA | J10: 122 | K10: 20000 | L10: 17000 | M10: 18000 | N10: 14960 | O10: 14960 | P10: SOVTRANS | R10: BALASHIHA | S10: 122 | T10: 9999999 | U10: 15000 | V10: 9999999 | W10: 11968 | X10: 11968 | Y10: SOVTRANS | AA10: BALASHIHA | AB10: 122 | AC10: 9999999 | AD10: 13000 | AE10: 13000 | AF10: 10208 | AG10: 10208 | AH10: SOVTRANS | AJ10: =IFERROR(L10-L10*15%,0) -> 14450 | AK10: =IFERROR(M10-M10*15%,0) -> 15300 | AL10: 12716 | AM10: 12716 | AN10: 12716 | AP10: =IFERROR(T10-T10*15%,0) -> 8499999.15 | AQ10: =IFERROR(U10-U10*15%,0) -> 12750 | AR10: 8499999.15 | AS10: 10172.8 | AT10: 10172.8 | AV10: =IFERROR(AC10-AC10*15%,0) -> 8499999.15 | AW10: =IFERROR(AD10-AD10*15%,0) -> 11050 | AX10: 11050 | AY10: 8676.8 | AZ10: =MIN(AV10:AY10) -> 8676.8
A11: Total freight & logistics costs (to be added in Sulprice) | B11: =SUM(B9:B10) -> 0 | I11: BLAGOVESHSCENSK, AMUR | J11: 7900 | K11: 475000 | L11: 450000 | M11: 395000 | N11: 410550 | O11: 395000 | P11: ASSTRA | R11: BLAGOVESHSCENSK, AMUR | S11: 7900 | T11: 9999999 | U11: 390000 | V11: 395000 | W11: 328440 | X11: 328440 | Y11: SOVTRANS | AA11: BLAGOVESHSCENSK, AMUR | AB11: 7900 | AC11: 9999999 | AD11: 380000 | AE11: 315000 | AF11: 280140 | AG11: 280140 | AH11: SOVTRANS | AJ11: =IFERROR(L11-L11*10%,0) -> 405000 | AK11: =IFERROR(M11-M11*10%,0) -> 355500 | AL11: 369495 | AM11: 355500 | AN11: 355500 | AP11: 8999999.1 | AQ11: =IFERROR(U11-U11*10%,0) -> 351000 | AR11: =IFERROR(V11-V11*10%,0) -> 355500 | AS11: =IFERROR(W11-W11*10%,0) -> 295596 | AT11: 295596 | AV11: =IFERROR(AC11-AC11*10%,0) -> 8999999.1 | AW11: =IFERROR(AD11-AD11*10%,0) -> 342000 | AX11: 283500 | AY11: 252126 | AZ11: 252126
A12: Details: | B12: 🚚 Truck 10t | C12: 🚚 Truck 5t | D12: 🚚 Truck 3t / LTL | F12: 🚚 Truck 10t | I12: BLAGOVESHSCENSK, BASH | J12: 1400 | K12: 95000 | L12: 90000 | M12: 73000 | N12: 33915 | O12: 33915 | P12: SOVTRANS | R12: BLAGOVESHSCENSK, BASH | S12: 1400 | T12: 9999999 | U12: 78000 | V12: 73000 | W12: 27132 | X12: 27132 | Y12: SOVTRANS | AA12: BLAGOVESHSCENSK, BASH | AB12: 1400 | AC12: 9999999 | AD12: 62000 | AE12: 58000 | AF12: 23142 | AG12: 23142 | AH12: SOVTRANS | AJ12: =IFERROR(L12-L12*10%,0) -> 81000 | AK12: 65700 | AL12: 30523.5 | AM12: 30523.5 | AN12: 30523.5 | AP12: 8999999.1 | AQ12: 70200 | AR12: 65700 | AS12: 24418.8 | AT12: 24418.8 | AV12: =IFERROR(AC12-AC12*10%,0) -> 8999999.1 | AW12: 55800 | AX12: 52200 | AY12: 20827.8 | AZ12: 20827.8
A13: Total freight & logistics costs | B13: =IF(ISNA(VLOOKUP(B4,F17:F20,1,0))=TRUE,VLOOKUP(B4,I:P,7,0),SUM(VLOOKUP(B4,I:P,7,0),B11)) -> 56000 | C13: =IF(ISNA(VLOOKUP(B4,F17:F20,1,0))=TRUE,VLOOKUP(B4,R:Y,7,0),SUM(VLOOKUP(B4,R:Y,7,0),B11)) -> 55692 | D13: =IF(ISNA(VLOOKUP(B4,F17:F20,1,0))=TRUE,VLOOKUP(B4,AA:AH,7,0),SUM(VLOOKUP(B4,AA:AH,7,0),B11)) -> 47502 | F13: =VLOOKUP(B4,I:P,8,0) -> ASSTRA | I13: BORISOGLEBSK | J13: 574 | K13: 50000 | L13: 38000 | M13: 9999999 | N13: 33915 | O13: 33915 | P13: SOVTRANS | R13: BORISOGLEBSK | S13: 574 | T13: 9999999 | U13: 32000 | V13: 9999999 | W13: 27132 | X13: 27132 | Y13: SOVTRANS | AA13: BORISOGLEBSK | AB13: 574 | AC13: 9999999 | AD13: 29000 | AE13: 9999999 | AF13: 23142 | AG13: 23142 | AH13: SOVTRANS | AJ13: 34200 | AK13: 8999999.1 | AL13: 30523.5 | AM13: 30523.5 | AN13: 30523.5 | AP13: 8999999.1 | AQ13: 28800 | AR13: 8999999.1 | AS13: 24418.8 | AT13: 24418.8 | AV13: 8999999.1 | AW13: 26100 | AX13: 8999999.1 | AY13: 20827.8 | AZ13: 20827.8
I14: BRATSK | J14: 4919 | K14: 295000 | L14: 285000 | M14: 250000 | N14: 263287.5 | O14: 250000 | P14: ASSTRA | R14: BRATSK | S14: 4919 | T14: 9999999 | U14: 237000 | V14: 9999999 | W14: 210630 | X14: 210630 | Y14: SOVTRANS | AA14: BRATSK | AB14: 4919 | AC14: 9999999 | AD14: 220000 | AE14: 9999999 | AF14: 179655 | AG14: 179655 | AH14: SOVTRANS | AJ14: 256500 | AK14: 225000 | AL14: 236958.75 | AM14: 225000 | AN14: 225000 | AP14: 8999999.1 | AQ14: 213300 | AR14: 8999999.1 | AS14: 189567 | AT14: 189567 | AV14: 8999999.1 | AW14: 198000 | AX14: 8999999.1 | AY14: 161689.5 | AZ14: 161689.5
F15: 🚚 Truck 5t | I15: DOROGOBUZH | J15: 346 | K15: 35000 | L15: 26000 | M15: 9999999 | N15: 21420 | O15: 21420 | P15: SOVTRANS | R15: DOROGOBUZH | S15: 346 | T15: 9999999 | U15: 24000 | V15: 9999999 | W15: 17136 | X15: 17136 | Y15: SOVTRANS | AA15: DOROGOBUZH | AB15: 346 | AC15: 9999999 | AD15: 22000 | AE15: 9999999 | AF15: 14616 | AG15: 14616 | AH15: SOVTRANS | AJ15: 23400 | AK15: 8999999.1 | AL15: 19278 | AM15: 19278 | AN15: 19278 | AP15: 8999999.1 | AQ15: 21600 | AR15: 8999999.1 | AS15: 15422.4 | AT15: 15422.4 | AV15: 8999999.1 | AW15: 19800 | AX15: 8999999.1 | AY15: 13154.4 | AZ15: 13154.4
F16: =VLOOKUP(B4,R:Y,8,0) -> SOVTRANS | I16: DZERZHINSK | J16: 490 | K16: 33000 | L16: 32000 | M16: 25000 | N16: 24097.5 | O16: 24097.5 | P16: SOVTRANS | R16: DZERZHINSK | S16: 490 | T16: 9999999 | U16: 28000 | V16: 9999999 | W16: 19278 | X16: 19278 | Y16: SOVTRANS | AA16: DZERZHINSK | AB16: 490 | AC16: 9999999 | AD16: 25000 | AE16: 15000 | AF16: 16443 | AG16: 15000 | AH16: ASSTRA | AJ16: =IFERROR(L16-L16*15%,0) -> 27200 | AK16: =IFERROR(M16-M16*15%,0) -> 21250 | AL16: 20482.875 | AM16: 20482.875 | AN16: 20482.875 | AP16: =IFERROR(T16-T16*15%,0) -> 8499999.15 | AQ16: =IFERROR(U16-U16*15%,0) -> 23800 | AR16: 8499999.15 | AS16: 16386.3 | AT16: 16386.3 | AV16: =IFERROR(AC16-AC16*15%,0) -> 8499999.15 | AW16: =IFERROR(AD16-AD16*15%,0) -> 21250 | AX16: 12750 | AY16: 13976.55 | AZ16: 12750
I17: GAGARIN | J17: 201 | K17: 25000 | L17: 21000 | M17: 35000 | N17: 17850 | O17: 17850 | P17: SOVTRANS | R17: GAGARIN | S17: 201 | T17: 9999999 | U17: 18000 | V17: 9999999 | W17: 14280 | X17: 14280 | Y17: SOVTRANS | AA17: GAGARIN | AB17: 201 | AC17: 9999999 | AD17: 16000 | AE17: 9999999 | AF17: 12180 | AG17: 12180 | AH17: SOVTRANS | AJ17: =IFERROR(L17-L17*15%,0) -> 17850 | AK17: 29750 | AL17: 15172.5 | AM17: 15172.5 | AN17: 15172.5 | AP17: =IFERROR(T17-T17*15%,0) -> 8499999.15 | AQ17: 15300 | AR17: 8499999.15 | AS17: 12138 | AT17: 12138 | AV17: =IFERROR(AC17-AC17*15%,0) -> 8499999.15 | AW17: 13600 | AX17: 8499999.15 | AY17: 10353 | AZ17: 10353
F18: 🚚 Truck 3t | I18: KALUGA | J18: 133 | K18: 22000 | L18: 18000 | M18: 17000 | N18: 15895 | O18: 15895 | P18: SOVTRANS | R18: KALUGA | S18: 133 | T18: 9999999 | U18: 15000 | V18: 9999999 | W18: 12716 | X18: 12716 | Y18: SOVTRANS | AA18: KALUGA | AB18: 133 | AC18: 9999999 | AD18: 13000 | AE18: 12000 | AF18: 10846 | AG18: 10846 | AH18: SOVTRANS | AJ18: 15300 | AK18: 14450 | AL18: 13510.75 | AM18: 13510.75 | AN18: 13510.75 | AP18: 8499999.15 | AQ18: 12750 | AR18: 8499999.15 | AS18: 10808.6 | AT18: 10808.6 | AV18: 8499999.15 | AW18: 11050 | AX18: 10200 | AY18: 9219.1 | AZ18: 9219.1
F19: =VLOOKUP(B4,AA:AH,8,0) -> SOVTRANS | I19: KAZAN | J19: 912 | K19: 70000 | L19: 50000 | M19: 38000 | N19: 46410 | O19: 38000 | P19: ASSTRA | R19: KAZAN | S19: 912 | T19: 9999999 | U19: 44000 | V19: 9999999 | W19: 37128 | X19: 37128 | Y19: SOVTRANS | AA19: KAZAN | AB19: 912 | AC19: 9999999 | AD19: 39000 | AE19: 30000 | AF19: 31668 | AG19: 30000 | AH19: ASSTRA | AJ19: 42500 | AK19: 32300 | AL19: 39448.5 | AM19: 32300 | AN19: 32300 | AP19: 8499999.15 | AQ19: 37400 | AR19: 8499999.15 | AS19: 31558.8 | AT19: 31558.8 | AV19: 8499999.15 | AW19: 33150 | AX19: 25500 | AY19: 26917.8 | AZ19: 25500
I20: KEMEROVO | J20: 3711 | K20: 220000 | L20: 220000 | M20: 160000 | N20: 174037.5 | O20: 160000 | P20: ASSTRA | R20: KEMEROVO | S20: 3711 | T20: 9999999 | U20: 180000 | V20: 9999999 | W20: 139230 | X20: 139230 | Y20: SOVTRANS | AA20: KEMEROVO | AB20: 3711 | AC20: 9999999 | AD20: 168000 | AE20: 9999999 | AF20: 118755 | AG20: 118755 | AH20: SOVTRANS | AJ20: =IFERROR(L20-L20*10%,0) -> 198000 | AK20: =IFERROR(M20-M20*10%,0) -> 144000 | AL20: 156633.75 | AM20: 144000 | AN20: 144000 | AP20: 8999999.1 | AQ20: =IFERROR(U20-U20*10%,0) -> 162000 | AR20: =IFERROR(V20-V20*10%,0) -> 8999999.1 | AS20: =IFERROR(W20-W20*10%,0) -> 125307 | AT20: 125307 | AV20: =IFERROR(AC20-AC20*10%,0) -> 8999999.1 | AW20: =IFERROR(AD20-AD20*10%,0) -> 151200 | AX20: 8999999.1 | AY20: 106879.5 | AZ20: 106879.5
I21: KIRISHI | J21: 749 | K21: 45000 | L21: 37000 | M21: 35000 | N21: 31237.5 | O21: 31237.5 | P21: SOVTRANS | R21: KIRISHI | S21: 749 | T21: 9999999 | U21: 32000 | V21: 9999999 | W21: 24990 | X21: 24990 | Y21: SOVTRANS | AA21: KIRISHI | AB21: 749 | AC21: 9999999 | AD21: 29000 | AE21: 9999999 | AF21: 21315 | AG21: 21315 | AH21: SOVTRANS | AJ21: =IFERROR(L21-L21*10%,0) -> 33300 | AK21: 31500 | AL21: 28113.75 | AM21: 28113.75 | AN21: 28113.75 | AP21: 8999999.1 | AQ21: 28800 | AR21: 8999999.1 | AS21: 22491 | AT21: 22491 | AV21: =IFERROR(AC21-AC21*10%,0) -> 8999999.1 | AW21: 26100 | AX21: 8999999.1 | AY21: 19183.5 | AZ21: 19183.5
I22: KIROVO-CHEPECK | J22: 1106 | K22: 85000 | L22: 62000 | M22: 49000 | N22: 46410 | O22: 46410 | P22: SOVTRANS | R22: KIROVO-CHEPECK | S22: 1106 | T22: 9999999 | U22: 50000 | V22: 9999999 | W22: 37128 | X22: 37128 | Y22: SOVTRANS | AA22: KIROVO-CHEPECK | AB22: 1106 | AC22: 9999999 | AD22: 46000 | AE22: 9999999 | AF22: 31668 | AG22: 31668 | AH22: SOVTRANS | AJ22: 55800 | AK22: 44100 | AL22: 41769 | AM22: 41769 | AN22: 41769 | AP22: 8999999.1 | AQ22: 45000 | AR22: 8999999.1 | AS22: 33415.2 | AT22: 33415.2 | AV22: 8999999.1 | AW22: 41400 | AX22: 8999999.1 | AY22: 28501.2 | AZ22: 28501.2
I23: KRASNODAR | J23: 1312 | K23: 85000 | L23: 70000 | M23: 65000 | N23: 64260 | O23: 64260 | P23: SOVTRANS | R23: KRASNODAR | S23: 1312 | T23: 9999999 | U23: 59000 | V23: 9999999 | W23: 51408 | X23: 51408 | Y23: SOVTRANS | AA23: KRASNODAR | AB23: 1312 | AC23: 9999999 | AD23: 55000 | AE23: 55000 | AF23: 43848 | AG23: 43848 | AH23: SOVTRANS | AJ23: 63000 | AK23: 58500 | AL23: 57834 | AM23: 57834 | AN23: 57834 | AP23: 8999999.1 | AQ23: 53100 | AR23: 8999999.1 | AS23: 46267.2 | AT23: 46267.2 | AV23: 8999999.1 | AW23: 49500 | AX23: 49500 | AY23: 39463.2 | AZ23: 39463.2
I24: KRASNOYARSK | J24: 4239 | K24: 250000 | L24: 243000 | M24: 170000 | N24: 200812.5 | O24: 170000 | P24: ASSTRA | R24: KRASNOYARSK | S24: 4239 | T24: 9999999 | U24: 205000 | V24: 9999999 | W24: 160650 | X24: 160650 | Y24: SOVTRANS | AA24: KRASNOYARSK | AB24: 4239 | AC24: 9999999 | AD24: 185000 | AE24: 155000 | AF24: 137025 | AG24: 137025 | AH24: SOVTRANS | AJ24: 218700 | AK24: 153000 | AL24: 180731.25 | AM24: 153000 | AN24: 153000 | AP24: 8999999.1 | AQ24: 184500 | AR24: 8999999.1 | AS24: 144585 | AT24: 144585 | AV24: 8999999.1 | AW24: 166500 | AX24: 139500 | AY24: 123322.5 | AZ24: 123322.5
I25: KSTOVO | J25: 538 | K25: 40000 | L25: 33000 | M25: 24000 | N25: 24990 | O25: 24000 | P25: ASSTRA | R25: KSTOVO | S25: 538 | T25: 9999999 | U25: 29000 | V25: 9999999 | W25: 19992 | X25: 19992 | Y25: SOVTRANS | AA25: KSTOVO | AB25: 538 | AC25: 9999999 | AD25: 26000 | AE25: 19000 | AF25: 17052 | AG25: 17052 | AH25: SOVTRANS | AJ25: =IFERROR(L25-L25*15%,0) -> 28050 | AK25: =IFERROR(M25-M25*15%,0) -> 20400 | AL25: 21241.5 | AM25: 20400 | AN25: 20400 | AP25: =IFERROR(T25-T25*15%,0) -> 8499999.15 | AQ25: =IFERROR(U25-U25*15%,0) -> 24650 | AR25: 8499999.15 | AS25: 16993.2 | AT25: 16993.2 | AV25: =IFERROR(AC25-AC25*15%,0) -> 8499999.15 | AW25: =IFERROR(AD25-AD25*15%,0) -> 22100 | AX25: 16150 | AY25: 14494.2 | AZ25: 14494.2
I26: KURGAN | J26: 2200 | K26: 140000 | L26: 126000 | M26: 135000 | N26: 112455 | O26: 112455 | P26: SOVTRANS | R26: KURGAN | S26: 2200 | T26: 9999999 | U26: 112000 | V26: 9999999 | W26: 89964 | X26: 89964 | Y26: SOVTRANS | AA26: KURGAN | AB26: 2200 | AC26: 9999999 | AD26: 105000 | AE26: 9999999 | AF26: 76734 | AG26: 76734 | AH26: SOVTRANS | AJ26: =IFERROR(L26-L26*10%,0) -> 113400 | AK26: =IFERROR(M26-M26*10%,0) -> 121500 | AL26: 101209.5 | AM26: 101209.5 | AN26: 101209.5 | AP26: 8999999.1 | AQ26: =IFERROR(U26-U26*10%,0) -> 100800 | AR26: =IFERROR(V26-V26*10%,0) -> 8999999.1 | AS26: =IFERROR(W26-W26*10%,0) -> 80967.6 | AT26: 80967.6 | AV26: =IFERROR(AC26-AC26*10%,0) -> 8999999.1 | AW26: =IFERROR(AD26-AD26*10%,0) -> 94500 | AX26: 8999999.1 | AY26: 69060.6 | AZ26: 69060.6
I27: LIPECK | J27: 423 | K27: 45000 | L27: 28000 | M27: 25000 | N27: 22312.5 | O27: 22312.5 | P27: SOVTRANS | R27: LIPECK | S27: 423 | T27: 9999999 | U27: 24000 | V27: 9999999 | W27: 17850 | X27: 17850 | Y27: SOVTRANS | AA27: LIPECK | AB27: 423 | AC27: 9999999 | AD27: 20000 | AE27: 20000 | AF27: 15225 | AG27: 15225 | AH27: SOVTRANS | AJ27: =IFERROR(L27-L27*10%,0) -> 25200 | AK27: 22500 | AL27: 20081.25 | AM27: 20081.25 | AN27: 20081.25 | AP27: 8999999.1 | AQ27: 21600 | AR27: 8999999.1 | AS27: 16065 | AT27: 16065 | AV27: =IFERROR(AC27-AC27*10%,0) -> 8999999.1 | AW27: 18000 | AX27: 18000 | AY27: 13702.5 | AZ27: 13702.5
I28: MONCHEGORSK | J28: 1910 | K28: 145000 | L28: 102000 | M28: 85000 | N28: 102637.5 | O28: 85000 | P28: ASSTRA | R28: MONCHEGORSK | S28: 1910 | T28: 9999999 | U28: 90000 | V28: 9999999 | W28: 82110 | X28: 82110 | Y28: SOVTRANS | AA28: MONCHEGORSK | AB28: 1910 | AC28: 9999999 | AD28: 77000 | AE28: 9999999 | AF28: 70035 | AG28: 70035 | AH28: SOVTRANS | AJ28: 91800 | AK28: 76500 | AL28: 92373.75 | AM28: 76500 | AN28: 76500 | AP28: 8999999.1 | AQ28: 81000 | AR28: 8999999.1 | AS28: 73899 | AT28: 73899 | AV28: 8999999.1 | AW28: 69300 | AX28: 8999999.1 | AY28: 63031.5 | AZ28: 63031.5
I29: MOSCOW | J29: 103 | K29: 20000 | L29: 17000 | M29: 15000 | N29: 14025 | O29: 14025 | P29: SOVTRANS | R29: MOSCOW | S29: 103 | T29: 9999999 | U29: 14000 | V29: 9999999 | W29: 11220 | X29: 11220 | Y29: SOVTRANS | AA29: MOSCOW | AB29: 103 | AC29: 9999999 | AD29: 12000 | AE29: 10000 | AF29: 9570 | AG29: 9570 | AH29: SOVTRANS | AJ29: =IFERROR(L29-L29*15%,0) -> 14450 | AK29: =IFERROR(M29-M29*15%,0) -> 12750 | AL29: 11921.25 | AM29: 11921.25 | AN29: 11921.25 | AP29: =IFERROR(T29-T29*15%,0) -> 8499999.15 | AQ29: =IFERROR(U29-U29*15%,0) -> 11900 | AR29: 8499999.15 | AS29: 9537 | AT29: 9537 | AV29: =IFERROR(AC29-AC29*15%,0) -> 8499999.15 | AW29: =IFERROR(AD29-AD29*15%,0) -> 10200 | AX29: 8500 | AY29: 8134.5 | AZ29: 8134.5
I30: MOZYR, BY | J30: 738 | K30: 60000 | L30: 45000 | M30: 9999999 | N30: 9999999 | O30: 45000 | P30: DACHSER | R30: MOZYR, BY | S30: 738 | T30: 9999999 | U30: 40000 | V30: 9999999 | W30: 9999999 | X30: 40000 | Y30: DACHSER | AA30: MOZYR, BY | AB30: 738 | AC30: 9999999 | AD30: 37000 | AE30: 9999999 | AF30: 9999999 | AG30: 37000 | AH30: DACHSER | AJ30: =IFERROR(L30-L30*10%,0) -> 40500 | AK30: =IFERROR(M30-M30*10%,0) -> 8999999.1 | AL30: 8999999.1 | AM30: 40500 | AN30: 40500 | AP30: 8999999.1 | AQ30: =IFERROR(U30-U30*10%,0) -> 36000 | AR30: =IFERROR(V30-V30*10%,0) -> 8999999.1 | AS30: =IFERROR(W30-W30*10%,0) -> 8999999.1 | AT30: 36000 | AV30: =IFERROR(AC30-AC30*10%,0) -> 8999999.1 | AW30: =IFERROR(AD30-AD30*10%,0) -> 33300 | AX30: 8999999.1 | AY30: 8999999.1 | AZ30: 33300
I31: NIZHNEKAMSK | J31: 1230 | K31: 80000 | L31: 64000 | M31: 48000 | N31: 50872.5 | O31: 48000 | P31: ASSTRA | R31: NIZHNEKAMSK | S31: 1230 | T31: 9999999 | U31: 52000 | V31: 9999999 | W31: 40698 | X31: 40698 | Y31: SOVTRANS | AA31: NIZHNEKAMSK | AB31: 1230 | AC31: 9999999 | AD31: 48000 | AE31: 35000 | AF31: 34713 | AG31: 34713 | AH31: SOVTRANS | AJ31: =IFERROR(L31-L31*15%,0) -> 54400 | AK31: =IFERROR(M31-M31*15%,0) -> 40800 | AL31: 43241.625 | AM31: 40800 | AN31: 40800 | AP31: =IFERROR(T31-T31*15%,0) -> 8499999.15 | AQ31: =IFERROR(U31-U31*15%,0) -> 44200 | AR31: 8499999.15 | AS31: 34593.3 | AT31: 34593.3 | AV31: =IFERROR(AC31-AC31*15%,0) -> 8499999.15 | AW31: =IFERROR(AD31-AD31*15%,0) -> 40800 | AX31: 29750 | AY31: 29506.05 | AZ31: 29506.05
I32: NIZHNEVARTOVSK | J32: 3234 | K32: 190000 | L32: 183000 | M32: 144000 | N32: 156187.5 | O32: 144000 | P32: ASSTRA | R32: NIZHNEVARTOVSK | S32: 3234 | T32: 9999999 | U32: 145000 | V32: 9999999 | W32: 124950 | X32: 124950 | Y32: SOVTRANS | AA32: NIZHNEVARTOVSK | AB32: 3234 | AC32: 9999999 | AD32: 135000 | AE32: 9999999 | AF32: 106575 | AG32: 106575 | AH32: SOVTRANS | AJ32: =IFERROR(L32-L32*10%,0) -> 164700 | AK32: =IFERROR(M32-M32*10%,0) -> 129600 | AL32: 140568.75 | AM32: 129600 | AN32: 129600 | AP32: 8999999.1 | AQ32: =IFERROR(U32-U32*10%,0) -> 130500 | AR32: =IFERROR(V32-V32*10%,0) -> 8999999.1 | AS32: =IFERROR(W32-W32*10%,0) -> 112455 | AT32: 112455 | AV32: =IFERROR(AC32-AC32*10%,0) -> 8999999.1 | AW32: =IFERROR(AD32-AD32*10%,0) -> 121500 | AX32: 8999999.1 | AY32: 95917.5 | AZ32: 95917.5
I33: NIZHNY NOVGOROD | J33: 499 | K33: 35000 | L33: 30000 | M33: 24000 | N33: 24990 | O33: 24000 | P33: ASSTRA | R33: NIZHNY NOVGOROD | S33: 499 | T33: 9999999 | U33: 27000 | V33: 9999999 | W33: 19992 | X33: 19992 | Y33: SOVTRANS | AA33: NIZHNY NOVGOROD | AB33: 499 | AC33: 9999999 | AD33: 24000 | AE33: 19000 | AF33: 17052 | AG33: 17052 | AH33: SOVTRANS | AJ33: =IFERROR(L33-L33*15%,0) -> 25500 | AK33: =IFERROR(M33-M33*15%,0) -> 20400 | AL33: 21241.5 | AM33: 20400 | AN33: 20400 | AP33: =IFERROR(T33-T33*15%,0) -> 8499999.15 | AQ33: =IFERROR(U33-U33*15%,0) -> 22950 | AR33: 8499999.15 | AS33: 16993.2 | AT33: 16993.2 | AV33: =IFERROR(AC33-AC33*15%,0) -> 8499999.15 | AW33: =IFERROR(AD33-AD33*15%,0) -> 20400 | AX33: 16150 | AY33: 14494.2 | AZ33: 14494.2
I34: NOVIY URENGOY | J34: 3761 | K34: 230000 | L34: 22000 | M34: 165000 | N34: 191887.5 | O34: 22000 | P34: DACHSER | R34: NOVIY URENGOY | S34: 3761 | T34: 9999999 | U34: 180000 | V34: 9999999 | W34: 153510 | X34: 153510 | Y34: SOVTRANS | AA34: NOVIY URENGOY | AB34: 3761 | AC34: 9999999 | AD34: 172000 | AE34: 145000 | AF34: 130935 | AG34: 130935 | AH34: SOVTRANS | AJ34: =IFERROR(L34-L34*10%,0) -> 19800 | AK34: =IFERROR(M34-M34*10%,0) -> 148500 | AL34: 172698.75 | AM34: 19800 | AN34: 19800 | AP34: 8999999.1 | AQ34: =IFERROR(U34-U34*10%,0) -> 162000 | AR34: =IFERROR(V34-V34*10%,0) -> 8999999.1 | AS34: =IFERROR(W34-W34*10%,0) -> 138159 | AT34: 138159 | AV34: =IFERROR(AC34-AC34*10%,0) -> 8999999.1 | AW34: =IFERROR(AD34-AD34*10%,0) -> 154800 | AX34: 130500 | AY34: 117841.5 | AZ34: 117841.5
I35: NOVOMOSKOVSK | J35: 851 | K35: 25000 | L35: 20000 | M35: 17000 | N35: 15172.5 | O35: 15172.5 | P35: SOVTRANS | R35: NOVOMOSKOVSK | S35: 851 | T35: 9999999 | U35: 18000 | V35: 9999999 | W35: 12138 | X35: 12138 | Y35: SOVTRANS | AA35: NOVOMOSKOVSK | AB35: 851 | AC35: 9999999 | AD35: 16000 | AE35: 12000 | AF35: 10353 | AG35: 10353 | AH35: SOVTRANS | AJ35: =IFERROR(L35-L35*15%,0) -> 17000 | AK35: =IFERROR(M35-M35*15%,0) -> 14450 | AL35: 12896.625 | AM35: 12896.625 | AN35: 12896.625 | AP35: =IFERROR(T35-T35*15%,0) -> 8499999.15 | AQ35: =IFERROR(U35-U35*15%,0) -> 15300 | AR35: 8499999.15 | AS35: 10317.3 | AT35: 10317.3 | AV35: =IFERROR(AC35-AC35*15%,0) -> 8499999.15 | AW35: =IFERROR(AD35-AD35*15%,0) -> 13600 | AX35: 10200 | AY35: 8800.05 | AZ35: 8800.05
I36: NOVOPOLOCK. BY | J36: 659 | K36: 50000 | L36: 39000 | M36: 9999999 | N36: 9999999 | O36: 39000 | P36: DACHSER | R36: NOVOPOLOCK. BY | S36: 659 | T36: 9999999 | U36: 35000 | V36: 9999999 | W36: 9999999 | X36: 35000 | Y36: DACHSER | AA36: NOVOPOLOCK. BY | AB36: 659 | AC36: 9999999 | AD36: 33000 | AE36: 9999999 | AF36: 9999999 | AG36: 33000 | AH36: DACHSER | AJ36: =IFERROR(L36-L36*10%,0) -> 35100 | AK36: =IFERROR(M36-M36*10%,0) -> 8999999.1 | AL36: 8999999.1 | AM36: 35100 | AN36: 35100 | AP36: 8999999.1 | AQ36: =IFERROR(U36-U36*10%,0) -> 31500 | AR36: =IFERROR(V36-V36*10%,0) -> 8999999.1 | AS36: =IFERROR(W36-W36*10%,0) -> 8999999.1 | AT36: 31500 | AV36: =IFERROR(AC36-AC36*10%,0) -> 8999999.1 | AW36: =IFERROR(AD36-AD36*10%,0) -> 29700 | AX36: 8999999.1 | AY36: 8999999.1 | AZ36: 29700
I37: NOVOSHAHTINSK | J37: 981 | K37: 60000 | L37: 60000 | M37: 58000 | N37: 52657.5 | O37: =MIN(K37:N37) -> 52657.5 | P37: SOVTRANS | R37: NOVOSHAHTINSK | S37: 981 | T37: 9999999 | U37: 50000 | V37: 9999999 | W37: 42126 | X37: =MIN(T37:W37) -> 42126 | Y37: SOVTRANS | AA37: NOVOSHAHTINSK | AB37: 981 | AC37: 9999999 | AD37: 46000 | AE37: 9999999 | AF37: 35931 | AG37: =MIN(AC37:AF37) -> 35931 | AH37: SOVTRANS | AJ37: =IFERROR(L37-L37*10%,0) -> 54000 | AK37: 52200 | AL37: 47391.75 | AM37: 47391.75 | AN37: 47391.75 | AP37: 8999999.1 | AQ37: 45000 | AR37: 8999999.1 | AS37: 37913.4 | AT37: 37913.4 | AV37: =IFERROR(AC37-AC37*10%,0) -> 8999999.1 | AW37: 41400 | AX37: 8999999.1 | AY37: 32337.9 | AZ37: 32337.9
I38: OMSK | J38: 2803 | K38: 175000 | L38: 154000 | M38: 110000 | N38: 138337.5 | O38: 110000 | P38: ASSTRA | R38: OMSK | S38: 2803 | T38: 9999999 | U38: 133000 | V38: 9999999 | W38: 110670 | X38: 110670 | Y38: SOVTRANS | AA38: OMSK | AB38: 2803 | AC38: 9999999 | AD38: 110000 | AE38: 9999999 | AF38: 94395 | AG38: 94395 | AH38: SOVTRANS | AJ38: =IFERROR(L38-L38*10%,0) -> 138600 | AK38: 99000 | AL38: 124503.75 | AM38: 99000 | AN38: 99000 | AP38: =IFERROR(T38-T38*10%,0) -> 8999999.1 | AQ38: 119700 | AR38: 8999999.1 | AS38: 99603 | AT38: 99603 | AV38: =IFERROR(AC38-AC38*10%,0) -> 8999999.1 | AW38: 99000 | AX38: 8999999.1 | AY38: 84955.5 | AZ38: 84955.5
I39: ORENBURG | J39: 1463 | K39: 95000 | L39: 85000 | M39: 75000 | N39: 80325 | O39: 75000 | P39: ASSTRA | R39: ORENBURG | S39: 1463 | T39: 9999999 | U39: 70000 | V39: 9999999 | W39: 64260 | X39: 64260 | Y39: SOVTRANS | AA39: ORENBURG | AB39: 1463 | AC39: 9999999 | AD39: 64000 | AE39: 9999999 | AF39: 54810 | AG39: 54810 | AH39: SOVTRANS | AJ39: =IFERROR(L39-L39*10%,0) -> 76500 | AK39: =IFERROR(M39-M39*10%,0) -> 67500 | AL39: 72292.5 | AM39: 67500 | AN39: 67500 | AP39: 8999999.1 | AQ39: =IFERROR(U39-U39*10%,0) -> 63000 | AR39: =IFERROR(V39-V39*10%,0) -> 8999999.1 | AS39: =IFERROR(W39-W39*10%,0) -> 57834 | AT39: 57834 | AV39: =IFERROR(AC39-AC39*10%,0) -> 8999999.1 | AW39: =IFERROR(AD39-AD39*10%,0) -> 57600 | AX39: 8999999.1 | AY39: 49329 | AZ39: 49329
I40: ORSK | J40: 1753 | K40: 110000 | L40: 97000 | M40: 80000 | N40: 89250 | O40: 80000 | P40: ASSTRA | R40: ORSK | S40: 1753 | T40: 9999999 | U40: 82000 | V40: 9999999 | W40: 71400 | X40: 71400 | Y40: SOVTRANS | AA40: ORSK | AB40: 1753 | AC40: 9999999 | AD40: 75000 | AE40: 9999999 | AF40: 60900 | AG40: 60900 | AH40: SOVTRANS | AJ40: =IFERROR(L40-L40*10%,0) -> 87300 | AK40: 72000 | AL40: 80325 | AM40: 72000 | AN40: 72000 | AP40: 8999999.1 | AQ40: 73800 | AR40: 8999999.1 | AS40: 64260 | AT40: 64260 | AV40: =IFERROR(AC40-AC40*10%,0) -> 8999999.1 | AW40: 67500 | AX40: 8999999.1 | AY40: 54810 | AZ40: 54810
I41: PAVLODAR | J41: 3225 | K41: 230000 | L41: 210000 | M41: 9999999 | N41: 9999999 | O41: 210000 | P41: DACHSER | R41: PAVLODAR | S41: 3225 | T41: 9999999 | U41: 190000 | V41: 9999999 | W41: 9999999 | X41: 190000 | Y41: DACHSER | AA41: PAVLODAR | AB41: 3225 | AC41: 9999999 | AD41: 177000 | AE41: 9999999 | AF41: 9999999 | AG41: 177000 | AH41: DACHSER | AJ41: 189000 | AK41: 8999999.1 | AL41: 8999999.1 | AM41: 189000 | AN41: 189000 | AP41: 8999999.1 | AQ41: 171000 | AR41: 8999999.1 | AS41: 8999999.1 | AT41: 171000 | AV41: 8999999.1 | AW41: 159300 | AX41: 8999999.1 | AY41: 8999999.1 | AZ41: 159300
I42: PERM | J42: 1544 | K42: 90000 | L42: 80000 | M42: 75000 | N42: 77647.5 | O42: 75000 | P42: ASSTRA | R42: PERM | S42: 1544 | T42: 9999999 | U42: 65000 | V42: 9999999 | W42: 62118 | X42: 62118 | Y42: SOVTRANS | AA42: PERM | AB42: 1544 | AC42: 9999999 | AD42: 55000 | AE42: 9999999 | AF42: 52983 | AG42: 52983 | AH42: SOVTRANS | AJ42: =IFERROR(L42-L42*15%,0) -> 68000 | AK42: =IFERROR(M42-M42*15%,0) -> 63750 | AL42: 66000.375 | AM42: 63750 | AN42: 63750 | AP42: =IFERROR(T42-T42*15%,0) -> 8499999.15 | AQ42: =IFERROR(U42-U42*15%,0) -> 55250 | AR42: 8499999.15 | AS42: 52800.3 | AT42: 52800.3 | AV42: =IFERROR(AC42-AC42*15%,0) -> 8499999.15 | AW42: =IFERROR(AD42-AD42*15%,0) -> 46750 | AX42: 8499999.15 | AY42: 45035.55 | AZ42: 45035.55
I43: PODOLSK | J43: 68 | K43: 15000 | L43: 17000 | M43: 18000 | N43: 12495 | O43: 12495 | P43: SOVTRANS | R43: PODOLSK | S43: 68 | T43: 9999999 | U43: 14000 | V43: 9999999 | W43: 9996 | X43: 9996 | Y43: SOVTRANS | AA43: PODOLSK | AB43: 68 | AC43: 9999999 | AD43: 12000 | AE43: 12000 | AF43: 8526 | AG43: 8526 | AH43: SOVTRANS | AJ43: =IFERROR(L43-L43*15%,0) -> 14450 | AK43: 15300 | AL43: 10620.75 | AM43: 10620.75 | AN43: 10620.75 | AP43: =IFERROR(T43-T43*15%,0) -> 8499999.15 | AQ43: 11900 | AR43: 8499999.15 | AS43: 8496.6 | AT43: 8496.6 | AV43: =IFERROR(AC43-AC43*15%,0) -> 8499999.15 | AW43: 10200 | AX43: 10200 | AY43: 7247.1 | AZ43: 7247.1
I44: ROSTOV-NA-DONU | J44: 1034 | K44: 70000 | L44: 60000 | M44: 55000 | N44: 53550 | O44: 53550 | P44: SOVTRANS | R44: ROSTOV-NA-DONU | S44: 1034 | T44: 9999999 | U44: 49000 | V44: 9999999 | W44: 42840 | X44: 42840 | Y44: SOVTRANS | AA44: ROSTOV-NA-DONU | AB44: 1034 | AC44: 9999999 | AD44: 45000 | AE44: 47000 | AF44: 36540 | AG44: 36540 | AH44: SOVTRANS | AJ44: =IFERROR(L44-L44*10%,0) -> 54000 | AK44: =IFERROR(M44-M44*10%,0) -> 49500 | AL44: 48195 | AM44: 48195 | AN44: 48195 | AP44: 8999999.1 | AQ44: =IFERROR(U44-U44*10%,0) -> 44100 | AR44: =IFERROR(V44-V44*10%,0) -> 8999999.1 | AS44: =IFERROR(W44-W44*10%,0) -> 38556 | AT44: 38556 | AV44: =IFERROR(AC44-AC44*10%,0) -> 8999999.1 | AW44: =IFERROR(AD44-AD44*10%,0) -> 40500 | AX44: 42300 | AY44: 32886 | AZ44: 32886
I45: RYAZAN | J45: 233 | K45: 18000 | L45: 19000 | M45: 17000 | N45: 16065 | O45: 16065 | P45: SOVTRANS | R45: RYAZAN | S45: 233 | T45: 9999999 | U45: 17000 | V45: 9999999 | W45: 12852 | X45: 12852 | Y45: SOVTRANS | AA45: RYAZAN | AB45: 233 | AC45: 9999999 | AD45: 14000 | AE45: 13000 | AF45: 10962 | AG45: 10962 | AH45: SOVTRANS | AJ45: =IFERROR(L45-L45*10%,0) -> 17100 | AK45: 15300 | AL45: 14458.5 | AM45: 14458.5 | AN45: 14458.5 | AP45: 8999999.1 | AQ45: 15300 | AR45: 8999999.1 | AS45: 11566.8 | AT45: 11566.8 | AV45: =IFERROR(AC45-AC45*10%,0) -> 8999999.1 | AW45: 12600 | AX45: 11700 | AY45: 9865.8 | AZ45: 9865.8
I46: SALAVAT, BEL | J46: 1654 | K46: 80000 | L46: 85000 | M46: 9999999 | N46: 9999999 | O46: 80000 | P46: AGILITY | R46: SALAVAT, BEL | S46: 1654 | T46: 9999999 | U46: 75000 | V46: 9999999 | W46: 9999999 | X46: 75000 | Y46: DACHSER | AA46: SALAVAT, BEL | AB46: 1654 | AC46: 9999999 | AD46: 70000 | AE46: 9999999 | AF46: 9999999 | AG46: 70000 | AH46: DACHSER | AJ46: 76500 | AK46: 8999999.1 | AL46: 8999999.1 | AM46: 72000 | AN46: 72000 | AP46: 8999999.1 | AQ46: 67500 | AR46: 8999999.1 | AS46: 8999999.1 | AT46: 67500 | AV46: 8999999.1 | AW46: 63000 | AX46: 8999999.1 | AY46: 8999999.1 | AZ46: 63000
I47: SAMARA | J47: 1054 | K47: 60000 | L47: 60000 | M47: 45000 | N47: 53550 | O47: 45000 | P47: ASSTRA | R47: SAMARA | S47: 1054 | T47: 9999999 | U47: 48000 | V47: 9999999 | W47: 42840 | X47: 42840 | Y47: SOVTRANS | AA47: SAMARA | AB47: 1054 | AC47: 9999999 | AD47: 43000 | AE47: 35000 | AF47: 36540 | AG47: 35000 | AH47: ASSTRA | AJ47: 54000 | AK47: 40500 | AL47: 48195 | AM47: 40500 | AN47: 40500 | AP47: 8999999.1 | AQ47: 43200 | AR47: 8999999.1 | AS47: 38556 | AT47: 38556 | AV47: 8999999.1 | AW47: 38700 | AX47: 31500 | AY47: 32886 | AZ47: 31500
I48: SANKT-PETERBURG | J48: 810 | K48: 45000 | L48: 32000 | M48: 29000 | N48: 33915 | O48: 29000 | P48: ASSTRA | R48: SANKT-PETERBURG | S48: 810 | T48: 9999999 | U48: 28000 | V48: 9999999 | W48: 27132 | X48: 27132 | Y48: SOVTRANS | AA48: SANKT-PETERBURG | AB48: 810 | AC48: 9999999 | AD48: 26000 | AE48: 25000 | AF48: 23142 | AG48: 23142 | AH48: SOVTRANS | AJ48: =IFERROR(L48-L48*15%,0) -> 27200 | AK48: =IFERROR(M48-M48*15%,0) -> 24650 | AL48: 28827.75 | AM48: 24650 | AN48: 24650 | AP48: =IFERROR(T48-T48*15%,0) -> 8499999.15 | AQ48: =IFERROR(U48-U48*15%,0) -> 23800 | AR48: 8499999.15 | AS48: 23062.2 | AT48: 23062.2 | AV48: =IFERROR(AC48-AC48*15%,0) -> 8499999.15 | AW48: =IFERROR(AD48-AD48*15%,0) -> 22100 | AX48: 21250 | AY48: 19670.7 | AZ48: 19670.7
I49: SARATOV | J49: 795 | K49: 50000 | L49: 50000 | M49: 42000 | N49: 45517.5 | O49: 42000 | P49: ASSTRA | R49: SARATOV | S49: 795 | T49: 9999999 | U49: 41000 | V49: 9999999 | W49: 36414 | X49: 36414 | Y49: SOVTRANS | AA49: SARATOV | AB49: 795 | AC49: 9999999 | AD49: 38000 | AE49: 9999999 | AF49: 31059 | AG49: 31059 | AH49: SOVTRANS | AJ49: =IFERROR(L49-L49*10%,0) -> 45000 | AK49: =IFERROR(M49-M49*10%,0) -> 37800 | AL49: 40965.75 | AM49: 37800 | AN49: 37800 | AP49: 8999999.1 | AQ49: =IFERROR(U49-U49*10%,0) -> 36900 | AR49: =IFERROR(V49-V49*10%,0) -> 8999999.1 | AS49: =IFERROR(W49-W49*10%,0) -> 32772.6 | AT49: 32772.6 | AV49: =IFERROR(AC49-AC49*10%,0) -> 8999999.1 | AW49: =IFERROR(AD49-AD49*10%,0) -> 34200 | AX49: 8999999.1 | AY49: 27953.1 | AZ49: 27953.1
I50: SALAVAT | J50: 1500 | K50: 100000 | L50: 9999999 | M50: 75000 | N50: 75862.5 | O50: 75000 | P50: ASSTRA | R50: SALAVAT | S50: 1500 | T50: 9999999 | U50: 9999999 | V50: 9999999 | W50: 60690 | X50: 60690 | Y50: SOVTRANS | AA50: SALAVAT | AB50: 1500 | AC50: 9999999 | AD50: 9999999 | AE50: 9999999 | AF50: 51765 | AG50: 51765 | AH50: SOVTRANS | AJ50: =IFERROR(L50-L50*10%,0) -> 8999999.1 | AK50: 67500 | AL50: 68276.25 | AM50: 67500 | AN50: 67500 | AP50: 8999999.1 | AQ50: 8999999.1 | AR50: 8999999.1 | AS50: 54621 | AT50: 54621 | AV50: =IFERROR(AC50-AC50*10%,0) -> 8999999.1 | AW50: 8999999.1 | AX50: 8999999.1 | AY50: 46588.5 | AZ50: 46588.5
I51: SYZRAN | J51: 898 | K51: 60000 | L51: 59000 | M51: 46000 | N51: 53550 | O51: 46000 | P51: ASSTRA | R51: SYZRAN | S51: 898 | T51: 9999999 | U51: 45000 | V51: 9999999 | W51: 42840 | X51: 42840 | Y51: SOVTRANS | AA51: SYZRAN | AB51: 898 | AC51: 9999999 | AD51: 40000 | AE51: 9999999 | AF51: 36540 | AG51: 36540 | AH51: SOVTRANS | AJ51: 53100 | AK51: 41400 | AL51: 48195 | AM51: 41400 | AN51: 41400 | AP51: 8999999.1 | AQ51: 40500 | AR51: 8999999.1 | AS51: 38556 | AT51: 38556 | AV51: 8999999.1 | AW51: 36000 | AX51: 8999999.1 | AY51: 32886 | AZ51: 32886
I52: TAGANROG | J52: 1100 | K52: 65000 | L52: 65000 | M52: 58000 | N52: 58012.5 | O52: 58000 | P52: ASSTRA | R52: TAGANROG | S52: 1100 | T52: 9999999 | U52: 52000 | V52: 9999999 | W52: 46410 | X52: 46410 | Y52: SOVTRANS | AA52: TAGANROG | AB52: 1100 | AC52: 9999999 | AD52: 48000 | AE52: 9999999 | AF52: 39585 | AG52: 39585 | AH52: SOVTRANS | AJ52: 58500 | AK52: 52200 | AL52: 52211.25 | AM52: 52200 | AN52: 52200 | AP52: 8999999.1 | AQ52: 46800 | AR52: 8999999.1 | AS52: 41769 | AT52: 41769 | AV52: 8999999.1 | AW52: 43200 | AX52: 8999999.1 | AY52: 35626.5 | AZ52: 35626.5
I53: TATARSTAN | J53: 1262 | K53: 95000 | L53: 58000 | M53: 38000 | N53: 9999999 | O53: 38000 | P53: ASSTRA | R53: TATARSTAN | S53: 1262 | T53: 9999999 | U53: 50000 | V53: 9999999 | W53: 9999999 | X53: 50000 | Y53: DACHSER | AA53: TATARSTAN | AB53: 1262 | AC53: 9999999 | AD53: 46000 | AE53: 30000 | AF53: 9999999 | AG53: 30000 | AH53: ASSTRA | AJ53: 52200 | AK53: 34200 | AL53: 8999999.1 | AM53: 34200 | AN53: 34200 | AP53: 8999999.1 | AQ53: 45000 | AR53: 8999999.1 | AS53: 8999999.1 | AT53: 45000 | AV53: 8999999.1 | AW53: 41400 | AX53: 27000 | AY53: 8999999.1 | AZ53: 27000
I54: TULA | J54: 92 | K54: 18000 | L54: 18000 | M54: 17000 | N54: 14280 | O54: 14280 | P54: SOVTRANS | R54: TULA | S54: 92 | T54: 9999999 | U54: 15000 | V54: 9999999 | W54: 11424 | X54: 11424 | Y54: SOVTRANS | AA54: TULA | AB54: 92 | AC54: 9999999 | AD54: 14000 | AE54: 12000 | AF54: 9744 | AG54: 9744 | AH54: SOVTRANS | AJ54: =IFERROR(L54-L54*15%,0) -> 15300 | AK54: =IFERROR(M54-M54*15%,0) -> 14450 | AL54: 12138 | AM54: 12138 | AN54: 12138 | AP54: =IFERROR(T54-T54*15%,0) -> 8499999.15 | AQ54: =IFERROR(U54-U54*15%,0) -> 12750 | AR54: 8499999.15 | AS54: 9710.4 | AT54: 9710.4 | AV54: =IFERROR(AC54-AC54*15%,0) -> 8499999.15 | AW54: =IFERROR(AD54-AD54*15%,0) -> 11900 | AX54: 10200 | AY54: 8282.4 | AZ54: 8282.4
I55: TUMEN | J55: 2209 | K55: 150000 | L55: 128000 | M55: 98000 | N55: 113347.5 | O55: 98000 | P55: ASSTRA | R55: TUMEN | S55: 2209 | T55: 9999999 | U55: 110000 | V55: 9999999 | W55: 90678 | X55: 90678 | Y55: SOVTRANS | AA55: TUMEN | AB55: 2209 | AC55: 9999999 | AD55: 90000 | AE55: 9999999 | AF55: 77343 | AG55: 77343 | AH55: SOVTRANS | AJ55: =IFERROR(L55-L55*10%,0) -> 115200 | AK55: =IFERROR(M55-M55*10%,0) -> 88200 | AL55: 102012.75 | AM55: 88200 | AN55: 88200 | AP55: 8999999.1 | AQ55: =IFERROR(U55-U55*10%,0) -> 99000 | AR55: =IFERROR(V55-V55*10%,0) -> 8999999.1 | AS55: =IFERROR(W55-W55*10%,0) -> 81610.2 | AT55: 81610.2 | AV55: =IFERROR(AC55-AC55*10%,0) -> 8999999.1 | AW55: =IFERROR(AD55-AD55*10%,0) -> 81000 | AX55: 8999999.1 | AY55: 69608.7 | AZ55: 69608.7
I56: ULYANOVSK | J56: 880 | K56: 60000 | L56: 55000 | M56: 40000 | N56: 50872.5 | O56: 40000 | P56: ASSTRA | R56: ULYANOVSK | S56: 880 | T56: 9999999 | U56: 42000 | V56: 9999999 | W56: 40698 | X56: 40698 | Y56: SOVTRANS | AA56: ULYANOVSK | AB56: 880 | AC56: 9999999 | AD56: 39000 | AE56: 9999999 | AF56: 34713 | AG56: 34713 | AH56: SOVTRANS | AJ56: =IFERROR(L56-L56*10%,0) -> 49500 | AK56: 36000 | AL56: 45785.25 | AM56: 36000 | AN56: 36000 | AP56: 8999999.1 | AQ56: 37800 | AR56: 8999999.1 | AS56: 36628.2 | AT56: 36628.2 | AV56: =IFERROR(AC56-AC56*10%,0) -> 8999999.1 | AW56: 35100 | AX56: 8999999.1 | AY56: 31241.7 | AZ56: 31241.7
I57: UST-KUT (IRKUTSK) | J57: 5269 | K57: 330000 | L57: 290000 | M57: 250000 | N57: 254362.5 | O57: 250000 | P57: ASSTRA | R57: UST-KUT (IRKUTSK) | S57: 5269 | T57: 9999999 | U57: 262000 | V57: 9999999 | W57: 222768 | X57: 222768 | Y57: SOVTRANS | AA57: UST-KUT (IRKUTSK) | AB57: 5269 | AC57: 9999999 | AD57: 250000 | AE57: 9999999 | AF57: 190008 | AG57: 190008 | AH57: SOVTRANS | AJ57: 261000 | AK57: 225000 | AL57: 228926.25 | AM57: 225000 | AN57: 225000 | AP57: 8999999.1 | AQ57: 235800 | AR57: 8999999.1 | AS57: 200491.2 | AT57: 200491.2 | AV57: 8999999.1 | AW57: 225000 | AX57: 8999999.1 | AY57: 171007.2 | AZ57: 171007.2
I58: VELIKI NOVGOROD | J58: 682 | K58: 38000 | L58: 32000 | M58: 27000 | N58: 28560 | O58: 27000 | P58: ASSTRA | R58: VELIKI NOVGOROD | S58: 682 | T58: 9999999 | U58: 29000 | V58: 9999999 | W58: 22848 | X58: 22848 | Y58: SOVTRANS | AA58: VELIKI NOVGOROD | AB58: 682 | AC58: 9999999 | AD58: 27000 | AE58: 23000 | AF58: 19488 | AG58: 19488 | AH58: SOVTRANS | AJ58: =IFERROR(L58-L58*15%,0) -> 27200 | AK58: =IFERROR(M58-M58*15%,0) -> 22950 | AL58: 24276 | AM58: 22950 | AN58: 22950 | AP58: =IFERROR(T58-T58*15%,0) -> 8499999.15 | AQ58: =IFERROR(U58-U58*15%,0) -> 24650 | AR58: 8499999.15 | AS58: 19420.8 | AT58: 19420.8 | AV58: =IFERROR(AC58-AC58*15%,0) -> 8499999.15 | AW58: =IFERROR(AD58-AD58*15%,0) -> 22950 | AX58: 19550 | AY58: 16564.8 | AZ58: 16564.8
I59: VOLGOGRAD | J59: 928 | K59: 60000 | L59: 55000 | M59: 44000 | N59: 44625 | O59: 44000 | P59: ASSTRA | R59: VOLGOGRAD | S59: 928 | T59: 9999999 | U59: 46000 | V59: 9999999 | W59: 35700 | X59: 35700 | Y59: SOVTRANS | AA59: VOLGOGRAD | AB59: 928 | AC59: 9999999 | AD59: 42000 | AE59: 35000 | AF59: 30450 | AG59: 30450 | AH59: SOVTRANS | AJ59: =IFERROR(L59-L59*10%,0) -> 49500 | AK59: =IFERROR(M59-M59*10%,0) -> 39600 | AL59: 40162.5 | AM59: 39600 | AN59: 39600 | AP59: 8999999.1 | AQ59: =IFERROR(U59-U59*10%,0) -> 41400 | AR59: =IFERROR(V59-V59*10%,0) -> 8999999.1 | AS59: =IFERROR(W59-W59*10%,0) -> 32130 | AT59: 32130 | AV59: =IFERROR(AC59-AC59*10%,0) -> 8999999.1 | AW59: =IFERROR(AD59-AD59*10%,0) -> 37800 | AX59: 31500 | AY59: 27405 | AZ59: 27405
I60: VORONEZH | J60: 482 | K60: 30000 | L60: 32000 | M60: 25000 | N60: 23205 | O60: 23205 | P60: SOVTRANS | R60: VORONEZH | S60: 482 | T60: 9999999 | U60: 26000 | V60: 9999999 | W60: 18564 | X60: 18564 | Y60: SOVTRANS | AA60: VORONEZH | AB60: 482 | AC60: 9999999 | AD60: 23000 | AE60: 19000 | AF60: 15834 | AG60: 15834 | AH60: SOVTRANS | AJ60: =IFERROR(L60-L60*10%,0) -> 28800 | AK60: 22500 | AL60: 20884.5 | AM60: 20884.5 | AN60: 20884.5 | AP60: 8999999.1 | AQ60: 23400 | AR60: 8999999.1 | AS60: 16707.6 | AT60: 16707.6 | AV60: =IFERROR(AC60-AC60*10%,0) -> 8999999.1 | AW60: 20700 | AX60: 17100 | AY60: 14250.6 | AZ60: 14250.6
I61: YAROSLAVL | J61: 375 | K61: 28000 | L61: 23000 | M61: 17000 | N61: 20527.5 | O61: 17000 | R61: YAROSLAVL | S61: 375 | T61: 9999999 | U61: 20000 | V61: 9999999 | W61: 16422 | X61: 16422 | AA61: YAROSLAVL | AB61: 375 | AC61: 9999999 | AD61: 18000 | AE61: 12000 | AF61: 14007 | AG61: 12000 | AJ61: =IFERROR(L61-L61*15%,0) -> 19550 | AK61: =IFERROR(M61-M61*15%,0) -> 14450 | AL61: 17448.375 | AM61: 14450 | AN61: 14450 | AP61: =IFERROR(T61-T61*15%,0) -> 8499999.15 | AQ61: =IFERROR(U61-U61*15%,0) -> 17000 | AR61: 8499999.15 | AS61: 13958.7 | AT61: 13958.7 | AV61: =IFERROR(AC61-AC61*15%,0) -> 8499999.15 | AW61: =IFERROR(AD61-AD61*15%,0) -> 15300 | AX61: 10200 | AY61: 11905.95 | AZ61: 10200
I62: Авто 10т | R62: Авто 5т | AA62: Авто 3т
